[Event "Nové Hrady - Rapid A"]
[Site "Nové Hrady, Czech Republic"]
[Date "2023.08.12"]
[Round "7.2"]
[White "Babula, Milan"]
[Black "Pochinkov, Andrey"]
[Result "1-0"]
[TimeControl "2x20min+5s"]
[WhiteFideId "300632"]
[BlackFideId "4146387"]
[WhiteElo "2212"]
[BlackElo "2052"]

1. e4 {[%clk 00:20:10]} {[%emt 00:09:52]} e6 {[%clk 00:20:06]} {[%emt
00:00:04]} 2. d4 {[%clk 00:20:10]} {[%emt 00:00:04]} d5 {[%clk 00:20:09]} 3.
Nc3 {[%clk 00:20:14]} Bb4 {[%clk 00:20:12]} {[%emt 00:00:06]} 4. Nge2 {[%clk
00:20:18]} dxe4 {[%clk 00:20:01]} {[%emt 00:00:16]} 5. a3 {[%clk 00:20:22]} Be7
{[%clk 00:20:03]} {[%emt 00:00:05]} 6. Nxe4 {[%clk 00:20:24]} {[%emt 00:00:03]}
Nc6 {[%clk 00:20:00]} {[%emt 00:00:07]} 7. g3 {[%clk 00:19:22]} {[%emt
00:01:08]} Nf6 {[%clk 00:19:39]} {[%emt 00:00:25]} 8. Bg2 {[%clk 00:19:15]}
{[%emt 00:00:12]} O-O {[%clk 00:18:44]} {[%emt 00:01:01]} 9. O-O {[%clk
00:19:07]} {[%emt 00:00:12]} e5 {[%clk 00:18:07]} {[%emt 00:00:42]} 10. Nxf6+
{[%clk 00:18:09]} {[%emt 00:01:03]} Bxf6 {[%clk 00:18:10]} {[%emt 00:00:02]} 11.
d5 {[%clk 00:18:12]} Ne7 {[%clk 00:17:39]} {[%emt 00:00:38]} 12. c4 {[%clk
00:18:05]} {[%emt 00:00:12]} Nf5 {[%clk 00:16:30]} {[%emt 00:01:14]} 13. Bd2
{[%clk 00:17:27]} {[%emt 00:00:43]} Re8 {[%clk 00:15:31]} {[%emt 00:01:04]} 14.
Bc3 {[%clk 00:17:28]} {[%emt 00:00:05]} e4 {[%clk 00:15:01]} {[%emt 00:00:35]}
15. Qc2 {[%clk 00:13:27]} {[%emt 00:04:06]} e3 {[%clk 00:13:33]} {[%emt
00:01:32]} 16. Be4 {[%clk 00:12:59]} {[%emt 00:00:33]} Bxc3 {[%clk 00:12:28]}
{[%emt 00:01:10]} 17. Nxc3 {[%clk 00:12:54]} {[%emt 00:00:11]} Qg5 {[%clk
00:09:45]} {[%emt 00:02:48]} 18. Rae1 {[%clk 00:11:35]} {[%emt 00:01:23]} exf2+
{[%clk 00:08:21]} {[%emt 00:01:29]} 19. Qxf2 {[%clk 00:11:27]} {[%emt
00:00:14]} g6 {[%clk 00:08:20]} {[%emt 00:00:05]} 20. c5 {[%clk 00:08:31]}
{[%emt 00:03:02]} Nh6 {[%clk 00:08:14]} {[%emt 00:00:09]} 21. Bg2 {[%clk
00:07:26]} {[%emt 00:01:11]} Bf5 {[%clk 00:07:47]} {[%emt 00:00:32]} 22. d6
{[%clk 00:04:41]} {[%emt 00:02:51]} Rxe1 {[%clk 00:07:09]} {[%emt 00:00:42]} 23.
Rxe1 {[%clk 00:04:36]} {[%emt 00:00:10]} cxd6 {[%clk 00:06:52]} {[%emt
00:00:23]} 24. cxd6 {[%clk 00:04:39]} {[%emt 00:00:03]} Rd8 {[%clk 00:06:39]}
{[%emt 00:00:16]} 25. Qd4 {[%clk 00:04:37]} {[%emt 00:00:07]} Be6 {[%clk
00:06:06]} {[%emt 00:00:39]} 26. Ne4 {[%clk 00:04:34]} {[%emt 00:00:08]} Qa5
{[%clk 00:04:36]} {[%emt 00:01:35]} 27. Nf6+ {[%clk 00:04:13]} {[%emt
00:00:26]} Kf8 {[%clk 00:04:30]} {[%emt 00:00:10]} 28. Nxh7+ {[%clk 00:04:06]}
{[%emt 00:00:12]} Kg8 {[%clk 00:04:32]} {[%emt 00:00:02]} 29. Nf6+ {[%clk
00:04:09]} {[%emt 00:00:03]} Kf8 {[%clk 00:04:36]} 30. b4 {[%clk 00:03:29]}
{[%emt 00:00:47]} Qb6 {[%clk 00:04:36]} {[%emt 00:00:04]} 31. Qxb6 {[%clk
00:03:07]} {[%emt 00:00:27]} axb6 {[%clk 00:04:40]} {[%emt 00:00:02]} 32. Rd1
{[%clk 00:03:12]} Nf5 {[%clk 00:04:37]} {[%emt 00:00:07]} 33. Bxb7 {[%clk
00:02:45]} {[%emt 00:00:32]} Nxd6 {[%clk 00:04:31]} {[%emt 00:00:11]} 34. Bc6
{[%clk 00:02:28]} {[%emt 00:00:23]} Ke7 {[%clk 00:04:24]} {[%emt 00:00:12]} 35.
Ne4 {[%clk 00:02:28]} {[%emt 00:00:05]} Nxe4 {[%clk 00:03:59]} {[%emt
00:00:30]} 36. Rxd8 {[%clk 00:02:31]} Kxd8 {[%clk 00:04:03]} {[%emt 00:00:02]}
37. Bxe4 {[%clk 00:02:35]} b5 {[%clk 00:03:13]} {[%emt 00:00:56]} 38. Kf2
{[%clk 00:02:39]} Kc7 {[%clk 00:03:16]} {[%emt 00:00:02]} 39. Ke3 {[%clk
00:02:43]} {[%emt 00:00:02]} Kd6 {[%clk 00:03:10]} {[%emt 00:00:11]} 40. Kd4
{[%clk 00:02:47]} Bd7 {[%clk 00:03:05]} {[%emt 00:00:10]} 41. h4 {[%clk
00:02:45]} {[%emt 00:00:07]} f5 {[%clk 00:02:50]} {[%emt 00:00:20]} 42. Bc2
{[%clk 00:02:41]} {[%emt 00:00:10]} Be8 {[%clk 00:02:33]} {[%emt 00:00:22]} 43.
Bb3 {[%clk 00:02:43]} {[%emt 00:00:03]} Ke7 {[%clk 00:01:49]} {[%emt 00:00:49]}
44. Ke5 {[%clk 00:02:07]} {[%emt 00:00:41]} Bd7 {[%clk 00:01:47]} {[%emt
00:00:06]} 45. Bd5 {[%clk 00:02:04]} {[%emt 00:00:09]} Be8 {[%clk 00:01:47]}
{[%emt 00:00:05]} 46. Bf3 {[%clk 00:02:05]} {[%emt 00:00:03]} Bd7 {[%clk
00:01:47]} {[%emt 00:00:06]} 47. h5 {[%clk 00:01:59]} {[%emt 00:00:11]} g5
{[%clk 00:01:20]} {[%emt 00:00:31]} 48. Bd5 {[%clk 00:02:01]} {[%emt 00:00:03]}
g4 {[%clk 00:01:09]} {[%emt 00:00:16]} 49. h6 {[%clk 00:02:00]} {[%emt
00:00:06]} Kf8 {[%clk 00:01:08]} {[%emt 00:00:06]} 50. Kf6 {[%clk 00:02:03]}
{[%emt 00:00:02]} 1-0

[Event "Nové Hrady - Rapid A"]
[Site "Nové Hrady, Czech Republic"]
[Date "2023.08.12"]
[Round "7.3"]
[White "Hák, David"]
[Black "Steinbauer, Sebastián"]
[Result "1-0"]
[TimeControl "2x20min+5s"]
[WhiteFideId "377007"]
[BlackFideId "399272"]
[WhiteElo "2123"]
[BlackElo "1833"]

1. d4 {[%clk 00:20:00]} {[%emt 00:00:10]} Nf6 {[%clk 00:20:05]} {[%emt
00:00:04]} 2. c4 {[%clk 00:20:00]} d5 {[%clk 00:20:05]} {[%emt 00:00:05]} 3.
cxd5 {[%clk 00:20:00]} {[%emt 00:00:04]} Nxd5 {[%clk 00:20:04]} {[%emt
00:00:06]} 4. e4 {[%clk 00:20:00]} Nf6 {[%clk 00:20:04]} 5. Nc3 {[%clk
00:20:00]} {[%emt 00:00:04]} g6 {[%clk 00:19:43]} {[%emt 00:00:26]} 6. Bc4
{[%clk 00:19:45]} {[%emt 00:00:20]} Bg7 {[%clk 00:19:39]} {[%emt 00:00:09]} 7.
e5 {[%clk 00:19:42]} {[%emt 00:00:08]} Nfd7 {[%clk 00:19:39]} {[%emt 00:00:02]}
8. Qb3 {[%clk 00:19:17]} {[%emt 00:00:30]} O-O {[%clk 00:19:27]} {[%emt
00:00:17]} 9. Bxf7+ {[%clk 00:19:14]} {[%emt 00:00:08]} Kh8 {[%clk 00:19:27]}
{[%emt 00:00:05]} 10. Nf3 {[%clk 00:19:07]} {[%emt 00:00:12]} Nb6 {[%clk
00:19:27]} {[%emt 00:00:03]} 11. h4 {[%clk 00:17:55]} {[%emt 00:01:17]} Nc6
{[%clk 00:19:27]} {[%emt 00:00:01]} 12. h5 {[%clk 00:17:38]} {[%emt 00:00:22]}
gxh5 {[%clk 00:18:50]} {[%emt 00:00:42]} 13. Rxh5 {[%clk 00:16:58]} {[%emt
00:00:44]} Bg4 {[%clk 00:18:37]} {[%emt 00:00:18]} 14. Rxh7+ {[%clk 00:16:28]}
{[%emt 00:00:35]} Kxh7 {[%clk 00:18:37]} {[%emt 00:00:04]} 15. Qc2+ {[%clk
00:16:28]} {[%emt 00:00:02]} Kh8 {[%clk 00:18:24]} {[%emt 00:00:18]} 16. Ng5
{[%clk 00:16:28]} Rxf7 {[%clk 00:18:13]} {[%emt 00:00:16]} 17. Qh7# {[%clk
00:16:28]} {[%emt 00:00:03]} 1-0

[Event "Nové Hrady - Rapid A"]
[Site "Nové Hrady, Czech Republic"]
[Date "2023.08.12"]
[Round "7.4"]
[White "Šlechta, Adam"]
[Black "Garabik, Marek"]
[Result "1-0"]
[TimeControl "2x20min+5s"]
[WhiteFideId "23734450"]
[BlackFideId "23717742"]
[WhiteElo "1409"]
[BlackElo "1767"]

1. d4 {[%clk 00:20:08]} {[%emt 00:00:02]} d5 {[%clk 00:20:09]} {[%emt
00:00:02]} 2. c4 {[%clk 00:19:44]} {[%emt 00:00:28]} e6 {[%clk 00:20:12]}
{[%emt 00:00:02]} 3. Nc3 {[%clk 00:19:45]} {[%emt 00:00:04]} Nf6 {[%clk
00:20:16]} 4. Bf4 {[%clk 00:19:46]} {[%emt 00:00:05]} Nbd7 {[%clk 00:20:14]}
{[%emt 00:00:07]} 5. e3 {[%clk 00:19:46]} {[%emt 00:00:06]} c6 {[%clk
00:20:17]} {[%emt 00:00:02]} 6. Nf3 {[%clk 00:19:48]} {[%emt 00:00:03]} Be7
{[%clk 00:19:51]} {[%emt 00:00:30]} 7. Be2 {[%clk 00:19:49]} {[%emt 00:00:04]}
O-O {[%clk 00:19:52]} {[%emt 00:00:05]} 8. c5 {[%clk 00:19:51]} {[%emt
00:00:03]} Nh5 {[%clk 00:19:48]} {[%emt 00:00:08]} 9. Bg3 {[%clk 00:19:53]}
{[%emt 00:00:03]} Nxg3 {[%clk 00:19:47]} {[%emt 00:00:06]} 10. hxg3 {[%clk
00:19:55]} {[%emt 00:00:02]} b6 {[%clk 00:19:23]} {[%emt 00:00:30]} 11. Qc2
{[%clk 00:19:40]} {[%emt 00:00:20]} Nf6 {[%clk 00:19:11]} {[%emt 00:00:17]} 12.
b4 {[%clk 00:19:41]} {[%emt 00:00:04]} b5 {[%clk 00:19:00]} {[%emt 00:00:16]}
13. Bd3 {[%clk 00:19:20]} {[%emt 00:00:27]} g6 {[%clk 00:18:43]} {[%emt
00:00:21]} 14. Ne5 {[%clk 00:18:52]} {[%emt 00:00:34]} Bb7 {[%clk 00:18:32]}
{[%emt 00:00:16]} 15. Nxg6 {[%clk 00:18:33]} {[%emt 00:00:24]} fxg6 {[%clk
00:16:41]} {[%emt 00:01:55]} 16. Bxg6 {[%clk 00:18:35]} {[%emt 00:00:03]} Rf7
{[%clk 00:15:18]} {[%emt 00:01:28]} 17. Bxf7+ {[%clk 00:18:32]} {[%emt
00:00:08]} Kxf7 {[%clk 00:15:20]} {[%emt 00:00:02]} 18. a4 {[%clk 00:17:42]}
{[%emt 00:00:56]} a6 {[%clk 00:15:01]} {[%emt 00:00:24]} 19. axb5 {[%clk
00:17:34]} {[%emt 00:00:13]} axb5 {[%clk 00:15:05]} 20. O-O {[%clk 00:17:29]}
{[%emt 00:00:11]} Kg7 {[%clk 00:13:58]} {[%emt 00:01:12]} 21. Qe2 {[%clk
00:16:08]} {[%emt 00:01:26]} Qe8 {[%clk 00:13:44]} {[%emt 00:00:19]} 22. Rxa8
{[%clk 00:16:02]} {[%emt 00:00:11]} Bxa8 {[%clk 00:13:44]} {[%emt 00:00:04]} 23.
Ra1 {[%clk 00:15:57]} {[%emt 00:00:11]} Bb7 {[%clk 00:13:38]} {[%emt 00:00:12]}
24. Kf1 {[%clk 00:15:08]} {[%emt 00:00:54]} Bc8 {[%clk 00:12:01]} {[%emt
00:01:41]} 25. Qf3 {[%clk 00:14:24]} {[%emt 00:00:49]} Bd7 {[%clk 00:11:34]}
{[%emt 00:00:33]} 26. e4 {[%clk 00:12:31]} {[%emt 00:01:58]} dxe4 {[%clk
00:10:27]} {[%emt 00:01:11]} 27. Nxe4 {[%clk 00:12:29]} {[%emt 00:00:08]} Qb8
{[%clk 00:07:43]} {[%emt 00:02:49]} 28. Nxf6 {[%clk 00:11:33]} {[%emt
00:01:01]} Bxf6 {[%clk 00:07:47]} 29. Qf4 {[%clk 00:11:21]} {[%emt 00:00:17]}
Qxf4 {[%clk 00:07:31]} {[%emt 00:00:22]} 30. gxf4 {[%clk 00:11:24]} {[%emt
00:00:02]} Kg6 {[%clk 00:07:35]} 31. g4 {[%clk 00:11:15]} {[%emt 00:00:14]} Be8
{[%clk 00:07:23]} {[%emt 00:00:17]} 32. Ra8 {[%clk 00:10:55]} {[%emt 00:00:24]}
Bd7 {[%clk 00:06:50]} {[%emt 00:00:39]} 33. Ke2 {[%clk 00:10:30]} {[%emt
00:00:31]} Kf7 {[%clk 00:06:41]} {[%emt 00:00:14]} 34. Ke3 {[%clk 00:10:03]}
{[%emt 00:00:31]} h6 {[%clk 00:06:26]} {[%emt 00:00:19]} 35. f3 {[%clk
00:09:42]} {[%emt 00:00:27]} Bh4 {[%clk 00:05:26]} {[%emt 00:01:05]} 36. Rh8
{[%clk 00:09:28]} {[%emt 00:00:19]} Kg7 {[%clk 00:05:27]} {[%emt 00:00:04]} 37.
Ra8 {[%clk 00:09:25]} {[%emt 00:00:07]} Kf7 {[%clk 00:05:30]} {[%emt 00:00:03]}
38. Ke4 {[%clk 00:09:11]} {[%emt 00:00:19]} Bf6 {[%clk 00:03:23]} {[%emt
00:02:13]} 39. Ra7 {[%clk 00:08:48]} {[%emt 00:00:28]} Ke8 {[%clk 00:03:06]}
{[%emt 00:00:21]} 40. Ra8+ {[%clk 00:08:35]} {[%emt 00:00:18]} Kf7 {[%clk
00:03:10]} {[%emt 00:00:02]} 41. f5 {[%clk 00:08:15]} {[%emt 00:00:24]} exf5+
{[%clk 00:03:09]} {[%emt 00:00:06]} 42. gxf5 {[%clk 00:08:18]} {[%emt
00:00:02]} h5 {[%clk 00:03:13]} {[%emt 00:00:02]} 43. Ra7 {[%clk 00:08:17]}
{[%emt 00:00:06]} Ke8 {[%clk 00:03:16]} {[%emt 00:00:01]} 44. d5 {[%clk
00:08:08]} {[%emt 00:00:13]} cxd5+ {[%clk 00:03:18]} {[%emt 00:00:04]} 45. Kxd5
Bxf5 46. Kc6 {[%clk 00:07:33]} {[%emt 00:00:40]} h4 {[%clk 00:02:37]} {[%emt
00:00:49]} 47. Kxb5 {[%clk 00:06:52]} {[%emt 00:00:46]} h3 {[%clk 00:02:27]}
{[%emt 00:00:15]} 48. Ra2 {[%clk 00:06:46]} {[%emt 00:00:11]} Kd7 {[%clk
00:02:12]} {[%emt 00:00:20]} 49. Kb6 {[%clk 00:06:16]} {[%emt 00:00:35]} Be5
{[%clk 00:02:05]} {[%emt 00:00:11]} 50. Kb7 {[%clk 00:05:33]} {[%emt 00:00:49]}
h2 {[%clk 00:01:08]} {[%emt 00:01:02]} 51. c6 {[%clk 00:05:19]} {[%emt
00:00:20]} Kd8 {[%clk 00:01:04]} {[%emt 00:00:08]} 52. Rd2+ {[%clk 00:05:07]}
{[%emt 00:00:18]} Ke7 {[%clk 00:00:42]} {[%emt 00:00:27]} 53. Rd1 {[%clk
00:04:38]} {[%emt 00:00:34]} Bh3 {[%clk 00:00:13]} {[%emt 00:00:33]} 54. Re1
{[%clk 00:04:06]} {[%emt 00:00:38]} Kf6 {[%clk 00:00:06]} {[%emt 00:00:11]} 55.
b5 {[%clk 00:03:58]} {[%emt 00:00:13]} 1-0

[Event "Nové Hrady - Rapid A"]
[Site "Nové Hrady, Czech Republic"]
[Date "2023.08.12"]
[Round "7.6"]
[White "Prinz, Hubert"]
[Black "Kukla, Josef"]
[Result "1-0"]
[TimeControl "2x20min+5s"]
[WhiteFideId "1639447"]
[BlackFideId "23725869"]
[WhiteElo "2038"]
[BlackElo "1364"]

1. d4 {[%clk 00:20:10]} {[%emt 00:09:25]} c5 {[%clk 00:20:01]} {[%emt
00:00:09]} 2. e3 {[%clk 00:20:13]} e6 {[%clk 00:19:43]} {[%emt 00:00:25]} 3.
Nf3 {[%clk 00:20:17]} {[%emt 00:00:02]} d5 {[%clk 00:19:29]} {[%emt 00:00:18]}
4. c3 {[%clk 00:20:20]} Nf6 {[%clk 00:19:13]} {[%emt 00:00:22]} 5. Bd3 {[%clk
00:20:23]} {[%emt 00:00:02]} Nc6 {[%clk 00:18:52]} {[%emt 00:00:25]} 6. O-O
{[%clk 00:20:24]} {[%emt 00:00:05]} c4 {[%clk 00:18:38]} {[%emt 00:00:19]} 7.
Bc2 {[%clk 00:20:26]} {[%emt 00:00:02]} g6 {[%clk 00:18:40]} {[%emt 00:00:03]}
8. b3 {[%clk 00:20:22]} {[%emt 00:00:09]} b5 {[%clk 00:18:32]} {[%emt
00:00:14]} 9. a4 {[%clk 00:20:25]} {[%emt 00:00:01]} bxa4 {[%clk 00:18:07]}
{[%emt 00:00:31]} 10. bxc4 {[%clk 00:20:27]} {[%emt 00:00:03]} Ba6 {[%clk
00:16:56]} {[%emt 00:01:16]} 11. Bxa4 {[%clk 00:20:16]} {[%emt 00:00:15]} Qc7
{[%clk 00:16:27]} {[%emt 00:00:35]} 12. Ne5 {[%clk 00:20:15]} {[%emt 00:00:05]}
Bb7 {[%clk 00:16:10]} {[%emt 00:00:22]} 13. cxd5 {[%clk 00:20:08]} {[%emt
00:00:13]} exd5 {[%clk 00:15:52]} {[%emt 00:00:23]} 14. Qf3 {[%clk 00:19:46]}
{[%emt 00:00:26]} Bg7 {[%clk 00:15:40]} {[%emt 00:00:18]} 15. Ba3 {[%clk
00:19:13]} {[%emt 00:00:37]} O-O-O {[%clk 00:14:51]} {[%emt 00:00:54]} 16. Nxc6
{[%clk 00:18:11]} {[%emt 00:01:08]} Bxc6 {[%clk 00:14:47]} {[%emt 00:00:08]} 17.
Bxc6 {[%clk 00:17:59]} {[%emt 00:00:18]} Qxc6 {[%clk 00:14:50]} {[%emt
00:00:02]} 18. Bc5 {[%clk 00:17:55]} {[%emt 00:00:09]} a6 {[%clk 00:14:35]}
{[%emt 00:00:19]} 19. c4 {[%clk 00:17:58]} Rd7 {[%clk 00:14:16]} {[%emt
00:00:26]} 20. Nc3 {[%clk 00:17:48]} {[%emt 00:00:16]} Rhd8 {[%clk 00:11:39]}
{[%emt 00:02:42]} 21. cxd5 {[%clk 00:17:51]} {[%emt 00:00:02]} Nxd5 {[%clk
00:11:27]} {[%emt 00:00:17]} 22. Nxd5 {[%clk 00:17:54]} {[%emt 00:00:02]} Rxd5
{[%clk 00:11:02]} {[%emt 00:00:30]} 23. Qxf7 {[%clk 00:17:35]} {[%emt
00:00:24]} R8d7 {[%clk 00:10:23]} {[%emt 00:00:44]} 24. Qe8+ {[%clk 00:17:20]}
{[%emt 00:00:18]} Kc7 {[%clk 00:10:05]} {[%emt 00:00:25]} 25. Be7 {[%clk
00:16:04]} {[%emt 00:01:20]} 1-0

[Event "Nové Hrady - Rapid A"]
[Site "Nové Hrady, Czech Republic"]
[Date "2023.08.12"]
[Round "7.7"]
[White "Hokr, Matyáš"]
[Black "Rausch, Rudolf"]
[Result "0-1"]
[TimeControl "2x20min+5s"]
[WhiteFideId "23734663"]
[BlackFideId "1639455"]
[WhiteElo "1228"]
[BlackElo "1861"]

1. e4 {[%clk 00:20:08]} {[%emt 00:00:02]} g6 {[%clk 00:20:08]} {[%emt
00:00:02]} 2. d4 {[%clk 00:20:10]} {[%emt 00:00:04]} d6 {[%clk 00:20:12]} 3.
Nc3 {[%clk 00:20:08]} {[%emt 00:00:08]} Bg7 {[%clk 00:20:16]} 4. f4 {[%clk
00:20:10]} {[%emt 00:00:03]} Nf6 {[%clk 00:20:18]} {[%emt 00:00:03]} 5. Nf3
{[%clk 00:20:13]} {[%emt 00:00:02]} O-O {[%clk 00:20:20]} {[%emt 00:00:03]} 6.
Bc4 {[%clk 00:20:09]} {[%emt 00:00:08]} Nc6 {[%clk 00:19:22]} {[%emt 00:01:04]}
7. d5 {[%clk 00:19:44]} {[%emt 00:00:30]} Na5 {[%clk 00:19:11]} {[%emt
00:00:15]} 8. Bd3 {[%clk 00:19:32]} {[%emt 00:00:17]} b6 {[%clk 00:19:15]}
{[%emt 00:00:02]} 9. O-O {[%clk 00:19:22]} {[%emt 00:00:15]} Nb7 {[%clk
00:19:01]} {[%emt 00:00:19]} 10. Be3 {[%clk 00:18:56]} {[%emt 00:00:30]} Ng4
{[%clk 00:18:59]} {[%emt 00:00:07]} 11. Bd4 {[%clk 00:18:47]} {[%emt 00:00:15]}
Bxd4+ {[%clk 00:18:46]} {[%emt 00:00:19]} 12. Nxd4 {[%clk 00:18:49]} {[%emt
00:00:03]} Nc5 {[%clk 00:18:46]} {[%emt 00:00:05]} 13. Bb5 {[%clk 00:18:30]}
{[%emt 00:00:22]} Ne3 {[%clk 00:18:44]} {[%emt 00:00:07]} 14. Qd2 {[%clk
00:17:50]} {[%emt 00:00:46]} Nxf1 {[%clk 00:18:45]} {[%emt 00:00:04]} 15. Rxf1
{[%clk 00:17:51]} {[%emt 00:00:04]} Bb7 {[%clk 00:18:24]} {[%emt 00:00:26]} 16.
f5 {[%clk 00:16:46]} {[%emt 00:01:09]} a6 {[%clk 00:18:16]} {[%emt 00:00:14]}
17. Bc6 {[%clk 00:16:03]} {[%emt 00:00:48]} Bxc6 {[%clk 00:15:33]} {[%emt
00:02:47]} 18. dxc6 {[%clk 00:15:55]} {[%emt 00:00:13]} Kg7 {[%clk 00:15:21]}
{[%emt 00:00:18]} 19. b4 {[%clk 00:15:42]} {[%emt 00:00:17]} e5 {[%clk
00:15:24]} {[%emt 00:00:03]} 20. f6+ {[%clk 00:15:40]} {[%emt 00:00:07]} Kh8
{[%clk 00:15:21]} {[%emt 00:00:07]} 21. bxc5 {[%clk 00:14:49]} {[%emt
00:00:56]} exd4 {[%clk 00:15:24]} {[%emt 00:00:02]} 22. Qxd4 {[%clk 00:14:39]}
{[%emt 00:00:16]} bxc5 {[%clk 00:15:01]} {[%emt 00:00:28]} 23. Qe3 {[%clk
00:14:19]} {[%emt 00:00:25]} Qe8 {[%clk 00:14:27]} {[%emt 00:00:38]} 24. Nd5
{[%clk 00:13:53]} {[%emt 00:00:31]} Qe5 {[%clk 00:13:23]} {[%emt 00:01:09]} 25.
Ne7 {[%clk 00:13:24]} {[%emt 00:00:35]} Qd4 {[%clk 00:13:18]} {[%emt 00:00:10]}
26. Qxd4 {[%clk 00:13:17]} {[%emt 00:00:12]} cxd4 {[%clk 00:13:21]} 27. Nd5
{[%clk 00:13:17]} {[%emt 00:00:06]} Ra7 {[%clk 00:12:43]} {[%emt 00:00:44]} 28.
Rb1 {[%clk 00:13:10]} {[%emt 00:00:12]} h6 {[%clk 00:12:42]} {[%emt 00:00:06]}
29. Kf2 {[%clk 00:13:06]} {[%emt 00:00:09]} g5 {[%clk 00:12:46]} 30. Kf3 {[%clk
00:13:05]} {[%emt 00:00:06]} Kh7 {[%clk 00:12:44]} {[%emt 00:00:08]} 31. g4
{[%clk 00:12:56]} {[%emt 00:00:15]} Kg6 {[%clk 00:12:48]} 32. Ke2 {[%clk
00:12:57]} {[%emt 00:00:04]} Re8 {[%clk 00:12:43]} {[%emt 00:00:09]} 33. Kd3
{[%clk 00:12:59]} {[%emt 00:00:03]} a5 {[%clk 00:12:34]} {[%emt 00:00:15]} 34.
Kxd4 {[%clk 00:13:01]} {[%emt 00:00:03]} a4 {[%clk 00:12:20]} {[%emt 00:00:19]}
35. a3 {[%clk 00:12:30]} {[%emt 00:00:35]} h5 {[%clk 00:11:54]} {[%emt
00:00:32]} 36. h3 {[%clk 00:12:26]} {[%emt 00:00:08]} hxg4 {[%clk 00:11:55]}
{[%emt 00:00:04]} 37. hxg4 {[%clk 00:12:29]} {[%emt 00:00:02]} Rh8 {[%clk
00:11:56]} {[%emt 00:00:04]} 38. c3 {[%clk 00:12:17]} {[%emt 00:00:17]} Rh4
{[%clk 00:11:55]} {[%emt 00:00:07]} 39. Rg1 {[%clk 00:12:12]} {[%emt 00:00:10]}
Rh2 {[%clk 00:11:32]} {[%emt 00:00:28]} 40. e5 {[%clk 00:11:55]} {[%emt
00:00:22]} Rd2+ {[%clk 00:11:20]} {[%emt 00:00:16]} 41. Ke3 {[%clk 00:11:55]}
{[%emt 00:00:05]} Rxd5 {[%clk 00:11:22]} {[%emt 00:00:03]} 0-1